Workbook

Sheet Explications
B3: Bonjour,
B5: Pour le fonctionnement du calcul, il faut d'abord sélectionner le salarié en colonne B (24 à26) de l'onglet simulateur,
B6: puis le type d'absence en colonne E et qui déclenche la mise à jour par la liste déroulante.
B8: Le fonctionnement suppose que l'on ne change rien à l'ordre des lignes ou colonnes, ni aux noms des onglets, sauf si vous arrivez à changer la macro.
B9: Par contre, en paramètres, vous pouvez ajouter votre base de salariés, jusqu'à 100.
B11: Cordialement

Sheet Simulateur
B2: L | C2: M | D2: M | E2: J | F2: V | G2: S | H2: D | J2: mois | K2: Octobre
B3: =IF(WEEKDAY(DATE(_Annee,MONTH(_Mois&1),1),2)=COLUMN()-1,DATE(_Annee,MONTH(_Mois&1),1),IF(A6>0,A6+1,0)) -> 00:00:00 | C3: =IF(WEEKDAY(DATE(_Annee,MONTH(_Mois&1),1),2)=COLUMN()-1,DATE(_Annee,MONTH(_Mois&1),1),IF(B3>0,B3+1,0)) -> 00:00:00 | D3: =IF(WEEKDAY(DATE(_Annee,MONTH(_Mois&1),1),2)=COLUMN()-1,DATE(_Annee,MONTH(_Mois&1),1),IF(C3>0,C3+1,0)) -> 00:00:00 | E3: 00:00:00 | F3: =IF(WEEKDAY(DATE(_Annee,MONTH(_Mois&1),1),2)=COLUMN()-1,DATE(_Annee,MONTH(_Mois&1),1),IF(E3>0,E3+1,0)) -> 00:00:00 | G3: 2022-10-01 | H3: 2022-10-02 | J3: Année | K3: 2022
B4: =H3+1 -> 2022-10-03 | C4: =B4+1 -> 2022-10-04 | D4: 2022-10-05 | E4: 2022-10-06 | F4: 2022-10-07 | G4: 2022-10-08 | H4: 2022-10-09 | K4: =DATE(_Annee,MONTH(_Mois&1),1) -> 2022-10-01
B5: =H4+1 -> 2022-10-10 | C5: 2022-10-11 | D5: 2022-10-12 | E5: 2022-10-13 | F5: 2022-10-14 | G5: 2022-10-15 | H5: 2022-10-16
B6: =H5+1 -> 2022-10-17 | C6: 2022-10-18 | D6: 2022-10-19 | E6: 2022-10-20 | F6: 2022-10-21 | G6: 2022-10-22 | H6: 2022-10-23
B7: =IFERROR(IF(MONTH(H6+1)=MONTH(_Mois&1),H6+1,""),"") -> 2022-10-24 | C7: =IFERROR(IF(MONTH(B7+1)=MONTH(_Mois&1),B7+1,""),"") -> 2022-10-25 | D7: 2022-10-26 | E7: 2022-10-27 | F7: 2022-10-28 | G7: 2022-10-29 | H7: 2022-10-30
B8: =IFERROR(IF(MONTH(H7+1)=MONTH(_Mois&1),H7+1,""),"") -> 2022-10-31
B10: Ancienneté du salarié | D10: Liste déroulante (conditions d'indemnisation) | G10: Jours ouvrés | H10: =NETWORKDAYS(DATE(_Annee,MONTH(_Mois&1),1),EOMONTH(DATE(_Annee,MONTH(_Mois&1),1),0),_Feries) -> 21
B11: Complément de salaire | D11: Liste déroulante (oui/non) | G11: Jours ouvrables | H11: =NETWORKDAYS.INTL(DATE(_Annee,MONTH(_Mois&1),1),EOMONTH(DATE(_Annee,MONTH(_Mois&1),1),0),11,_Feries) -> 26
G12: Jours calendaires | H12: =DATEDIF(DATE(_Annee,MONTH(_Mois&1),1),EOMONTH(DATE(_Annee,MONTH(_Mois&1),1),0)+1,"d") -> 31
B14: Calcul IJSS Sécurité Sociale
B16: Plafond IJ maladie | D16: 49.68 | H16: M-1 | I16: M-2 | J16: M-3
B17: Plafond IJ maternité / paternité | D17: 89.03 | H17: 1000 | I17: 1000 | J17: 1000
B18: Plafond IJ accident du travail | D18: 205.84 | E18: jusqu'au 28ème jour | G18: Plafond | H18: =1678.95*1.8 -> 3022.11 | I18: =1678.95*1.8 -> 3022.11 | J18: =1678.95*1.8 -> 3022.11
D19: 274.46 | E19: A compter du 29ème jour
F21: SS | H21: Employeur
B22: Salarié | C22: Début d'arret | D22: Fin d'arret | E22: Type d'arret | F22: Carence SS | G22: indemnisation 1 | H22: Carence emp. | I22: Indemnisation 2
B23: DDDDDDD georges | C23: 2022-09-01 | D23: 2022-09-15 | E23: Maladie | F23: =IF(E23<>"Maladie","",3) -> 3 | G23: 478.5139726 | H23: =IF(E23<>"Maladie","",7) -> 7 | I23: 199.3808219
B24: DDDDDDD georges | C24: 2022-09-01 | D24: 2022-09-15 | E24: Accident du travail | G24: 690.09 | I24: 690.09
B25: DDDDDDD georges | C25: 2022-09-01 | D25: 2022-09-15 | E25: Maternité Paternité | G25: 945.0650959 | I25: 945.0650959
G26: =IFERROR(IF(D26="","",IF(#REF!="non",D26-C26-F26,D26-C26)+1),"") ->  | I26: =IFERROR(IF(E26="","",IF(F26="non",E26-#REF!-H26,E26-#REF!)+1),"") -> 
C27: Total | G27: =SUBTOTAL(109,G23:G26) -> 2113.669068
B29: SJB (Mal-Mat-Pat) | D29: =SUM(H17:J17)/91.25 -> 32.87671233 | F29: IJSS brute totale | H29: =D31*G23 -> 7865.983111
B30: Gain journalier (AT) | D30: 0 | F30: IJSS nette totale | H30: =H29*0.933 -> 7338.962243
B31: IJSS Brute journalière | D31: =IF($D$29*50%<49.68,D29*50%,49.68) -> 16.43835616
B33: Calcul complément employeur
B35: Conditions d'idemnisation :
B37: Ancienneté | C37: Durée d’indemnisation | F37: Calcul montant perçu si le salarié avait été présent (prendre en compte le délai de carence pour le calcul de la période)
B38: De 1 à 5 ans | C38: 30 jours à 90 % | F38: Période du 08/08 au 15/08 soit 8 jours :
C39: 30 jours à 66,66 % | F39: (4000 / nbre de jours ouvrés)*nbre de jours d'absence (hos samedi et dimanche) soit
B40: De 6 à 10 ans | C40: 40 jours à 90 %
C41: 40 jours à 66,66 %
B42: De 11 à 15 ans | C42: 50 jours à 90 % | F42: L'employeur complète à hauteur de 90 %
C43: 50 jours à 66,66 % | F43: =F40*90% -> 0
B44: De 16 à 20 ans | C44: 60 jours à 90 %
C45: 60 jours à 66,66 %
B46: De 21 à 25 ans | C46: 70 jours à 90 %
C47: 70 jours à 66,66 %
B48: De 26 à 30 ans | C48: 80 jours à 90 %
C49: 80 jours à 66,66 %
B50: À partir de 31 ans | C50: 90 jours à 90 %
C51: 90 jours à 66,66 %

Sheet Calcul IJ
B1: Maladie | C1: Accident du travail | D1: Maternité Paternité
A2: Plafond SS | B2: 3022.11 | C2: 343.02 | D2: 3428
A3: Plafond IJSS brute | B3: 49.68 | C3: 205,84 (28 premiers jours) | D3: 89.03
C4: 274,46 (à compter du 29ème j)
A5: DDDDDDD georges | B5: =VLOOKUP(Simulateur!$B$23,Parametres!$A$2:$C$100,2,FALSE) -> 2500 | C5: =VLOOKUP(Simulateur!$B$23,Parametres!$A$2:$C$100,2,FALSE) -> 2500 | D5: =VLOOKUP(Simulateur!$B$23,Parametres!$A$2:$C$100,2,FALSE) -> 2500
A6: Etape 1 : | B6: Calcul SJB | C6: Calcul Gain journalier | D6: Calcul SJB
B7: 3 derniers salaires / 91,25 | C7: (dernier mois / 30.42) - 21% | D7: 3 derniers salaires / 91,25
A8: =+Simulateur!B23 -> DDDDDDD georges | B8: =VLOOKUP(Simulateur!$B$23,Parametres!$A$2:$C$10,3,FALSE)/91.25 -> 85.47945205 | C8: =VLOOKUP(Simulateur!$B$23,Parametres!$A$2:$C$10,2,FALSE)/30.42*0.79 -> 64.92439185 | D8: =VLOOKUP(Simulateur!$B$23,Parametres!$A$2:$C$10,3,FALSE)/91.25 -> 85.47945205
A9: Etape 2 : IJ Brute | B9: SJB*50 % | C9: 28 premiers jours | D9: SJB - 21%
B10: =+B8/2 -> 42.73972603 | C10: salaire brut / 30,42 * 60% | D10: =+D8*0.79 -> 67.52876712
C11: =+C5/30.42*0.6 -> 49.30966469
C12: À partir du 29eme jour
C13: salaire brut / 30,42 * 80%
C14: =+C5/30.42*0.8 -> 65.74621959
A15: Etape 3 : IJ Nette | B15: IJ brute à 93,3% | C15: IJ brute à 93,3% | D15: IJ brute à 93,3%
B16: =$B$10*0.933 -> 39.87616438 | D16: =$D$10*0.933 -> 63.00433973

Sheet Parametres
A1: salarié | B1: salaires du dernier mois | C1: salaires des trois derniers mois | E1: Mois | G1: Jour férié | H1: Date | J1: oui | K1: Maladie
A2: DDDDDDD georges | B2: 2500 | C2: 7800 | E2: Janvier | G2: Jour de l'an | H2: =DATE(_Annee,1,1) -> 2022-01-01 | J2: non | K2: Accident du travail
A3: ZZZZ Jean | B3: 1800 | C3: =3*B3 -> 5400 | E3: Février | G3: Pâques | H3: =ROUND(DATE(_Annee,4,MOD(234-11*MOD(_Annee,19),30))/7,0)*7-6 -> 2022-04-17 | K3: Maternité Paternité
A4: FFFFF Jeanine | B4: 2000 | C4: 6550 | E4: Mars | G4: Lundi de Pâques | H4: =H3+1 -> 2022-04-18
E5: Avril | G5: Fête du travail | H5: =DATE(_Annee,5,1) -> 2022-05-01
E6: Mai | G6: Victoire 39/45 | H6: =DATE(_Annee,5,8) -> 2022-05-08
E7: Juin | G7: Ascension | H7: =H4+38 -> 2022-05-26
E8: Juillet | G8: Pentecôte | H8: =H4+49 -> 2022-06-06
E9: Août | G9: Lundi de Pentecôte | H9: =H4+50 -> 2022-06-07
E10: Septembre | G10: Fête Nationale | H10: =DATE(_Annee,7,14) -> 2022-07-14
E11: Octobre | G11: Assomption | H11: =DATE(_Annee,8,15) -> 2022-08-15
E12: Novembre | G12: Toussaint | H12: =DATE(_Annee,11,1) -> 2022-11-01
E13: Décembre | G13: Armistice 14/18 | H13: =DATE(_Annee,11,11) -> 2022-11-11
G14: Noël | H14: =DATE(_Annee,12,25) -> 2022-12-25
